[Event "44th Chess Olympiad Open 2022"]
[Site "Chennai"]
[Date "2022.08.03"]
[Round "6.46"]
[White "Espinoza Solano, Jose Nahum"]
[Black "Asllani, Muhamet"]
[Result "0-1"]
[WhiteElo "2093"]
[BlackElo "2235"]
[Annotator "TA"]
[PlyCount "106"]
[EventDate "2022.??.??"]
[TimeControl "60"]

{[%evp 20,105,35,16,53,0,0,0,0,0,0,0,0,-7,0,0,0,-24,0,0,0,0,6,-12,-17,-19,-19,
-22,-19,-25,-5,-17,-17,-16,-11,-11,-7,-6,0,0,0,0,0,-6,0,-4,6,8,7,8,4,9,14,13,
20,20,20,20,45,45,45,45,45,37,35,16,30,0,0,0,0,0,8,8,63,58,441,429,404,404,616,
653,583,0,0,-6416,0,-29999]} 1. e4 {[%emt 0:00:26]} e5 {[%emt 0:00:05]} 2. Nf3
{[%emt 0:00:05]} Nc6 {[%emt 0:00:07]} 3. Bb5 {[%emt 0:00:07]} a6 {[%emt 0:00:
00]} 4. Ba4 {[%emt 0:00:37]} Nf6 {[%emt 0:00:10]} 5. O-O {[%emt 0:01:18]} Nxe4
{[%emt 0:01:00]} 6. Re1 {[%emt 0:06:13]} Nc5 {[%emt 0:03:50]} 7. Bxc6 {[%emt 0:
00:00]} dxc6 {[%emt 0:00:40]} 8. Nxe5 {[%emt 0:00:30]} Be7 {[%emt 0:00:26]} 9.
d4 {[%emt 0:00:42]} Ne6 {[%emt 0:00:13]} 10. Be3 {[%emt 0:01:44]} O-O {[%emt 0:
00:00]} 11. c4 {[%emt 0:00:23]} Bf6 {[%emt 0:00:33] C80: Open Ruy Lopez:
Sidelines and 9 Nbd2.} 12. Nc3 {[%emt 0:00:30]} (12. f4 $1 $14) 12... c5 $11 {
[%emt 0:02:04][%cal Rc5d4]} 13. Nd5 {[%emt 0:03:53]} cxd4 {[%emt 0:01:40] The
position is equal.} 14. Bxd4 {[%emt 0:00:18]} Nxd4 {[%emt 0:09:25]} 15. Qxd4 {
[%emt 0:00:08]} Be6 {[%emt 0:00:21]} 16. Rad1 {[%emt 0:05:31] [#]} Re8 $146 {
[%emt 0:01:19]} ({Predecessor:} 16... c6 17. Nf4 Qxd4 18. Rxd4 Rfe8 19. Nxe6
Rxe6 20. f4 Be7 21. Kf1 f6 22. Nd3 {½-½ (22) Hoffmann,L (1944)-Breitzmann,S 
(1894) Germany 2019}) 17. Nxf6+ {[%emt 0:10:20]} Qxf6 {[%emt 0:00:15]} 18. Nf3
{[%emt 0:01:13]} Qg6 {[%emt 0:03:20]} 19. Qe5 {[%emt 0:08:26]} Rac8 {[%emt 0:
00:00]} 20. b3 {[%emt 0:05:17]} f6 {[%emt 0:01:02]} 21. Qg3 {[%emt 0:01:28]}
Qxg3 {[%emt 0:03:25]} 22. hxg3 {[%emt 0:00:05]} Bg4 {[%emt 0:00:35]} 23. Kf1 {
[%emt 0:01:39]} Kf7 {[%emt 0:00:20]} 24. Rd4 {[%emt 0:00:46] Threatens to win
with Rxe8.} Rxe1+ {[%emt 0:00:43]} 25. Kxe1 {[%emt 0:03:19] Endgame KRB-KRN} h5
{[%emt 0:00:15]} 26. Kd2 {[%emt 0:04:21]} Re8 {[%emt 0:02:18]} 27. Ng1 {
[%emt 0:01:26]} g5 {[%emt 0:01:37]} 28. f3 {[%emt 0:00:31]} Bf5 {[%emt 0:00:00]
} 29. Ne2 {[%emt 0:00:13]} Re5 {[%emt 0:00:50]} 30. Nc3 {[%emt 0:00:48]} Re8 {
[%emt 0:09:54]} 31. a3 {[%emt 0:07:19]} Rh8 {[%emt 0:02:30]} 32. b4 {[%emt 0:
03:50]} h4 {[%emt 0:00:10]} 33. gxh4 {[%emt 0:00:07]} gxh4 {[%emt 0:00:00]} 34.
Nd5 {[%emt 0:00:54]} c6 {[%emt 0:01:05]} 35. Nf4 {[%emt 0:04:27]} Re8 {[%emt 0:
05:10]} 36. c5 {[%emt 0:01:36]} Ke7 {[%emt 0:02:38]} 37. Ke3 {[%emt 0:00:00]}
Rh8 {[%emt 0:00:30] Against Nh5} 38. Rd6 {[%emt 0:00:56]} Rh6 {[%emt 0:00:00]}
39. Rd1 {[%emt 0:01:04]} Rh8 {[%emt 0:00:35]} 40. Rh1 {[%emt 0:00:42]} Rh7 $1 {
[%emt 0:03:39]} 41. Ne2 {[%emt 0:31:42]} Kf7 {[%emt 0:33:53]} 42. Nd4 {[%emt 0:
03:05]} Bd7 {[%emt 0:00:46]} 43. g4 {[%emt 0:01:31][%cal Yg2g4,Yg4g5]} Kg6 {
[%emt 0:03:03]} 44. Kf4 {[%emt 0:02:07]} Bc8 {[%emt 0:02:57]} 45. Rh3 {[%emt 0:
01:17]} Rh8 {[%emt 0:03:08]} 46. Nc2 {[%emt 0:01:42]} f5 {[%emt 0:02:13]} (
46... a5 $11) 47. g5 $1 $14 {[%emt 0:02:06]} Kh5 $2 {[%emt 0:00:00]} (47... Be6
$14) 48. Ne3 $18 {[%emt 0:01:01]} Rd8 {[%emt 0:00:00]} 49. Ng2 $1 {[%emt 0:00:
54]} Rd4+ {[%emt 0:03:47] [#]} (49... Kg6 $142 50. Nxh4+ Kf7 51. Nxf5 Rd5) 50.
Ke5 $1 {[%emt 0:00:10]} Rd2 {[%emt 0:01:51] [#]} 51. Rxh4+ $2 {[%emt 0:03:16]}
({Only move:} 51. Nf4+ $1 $18 Kxg5 52. Rh1) 51... Kxg5 $11 {[%emt 0:00:13]
[%csl Gc6][%cal Rd2d5]} 52. f4+ {[%emt 0:00:28]} Kg6 {[%emt 0:01:20][%csl Gc6]
[%cal Rd2d5]} 53. Rh8 $2 {[%emt 0:00:15]} (53. Ne3 $11) 53... Rd5# {[%emt 0:00:
04] What a bad dream for White. Weighted Error Value: White=0.27 (precise) /
Black=0.30} 0-1

[Event "44th Chess Olympiad Open 2022"]
[Site "Chennai"]
[Date "2022.08.03"]
[Round "6.47"]
[White "Munoz Santana, Jose Lisandro"]
[Black "Christie, Joshua"]
[Result "1/2-1/2"]
[WhiteElo "2423"]
[BlackElo "2272"]
[Annotator "TA"]
[PlyCount "85"]
[EventDate "2022.??.??"]
[TimeControl "60"]

{[%evp 13,85,29,40,39,31,34,34,29,31,25,27,15,26,31,33,35,44,11,51,40,40,37,59,
22,32,18,35,34,16,24,42,19,33,0,0,0,27,25,36,12,55,46,92,99,102,108,109,89,99,
15,64,84,90,0,0,0,0,-502,-493,-709,-679,-842,-815,-896,0,0,0,0,0,0,0,0,0,0]} 1.
e4 {[%emt 0:00:04]} e5 {[%emt 0:01:04]} 2. Nf3 {[%emt 0:00:19]} Nc6 {[%emt 0:
00:00]} 3. Bc4 {[%emt 0:00:04]} Nf6 {[%emt 0:00:06]} 4. d3 {[%emt 0:00:04]} Be7
{[%emt 0:00:19]} 5. O-O {[%emt 0:00:07]} O-O {[%emt 0:00:16]} 6. Re1 {[%emt 0:
00:00]} d6 {[%emt 0:00:26]} 7. a4 {[%emt 0:01:06]} Na5 {[%emt 0:02:10]} 8. Ba2
{[%emt 0:00:31] C55: Two Knights: 4 d3, 4 d4 exd4 5 e5 and Max Lange Attack.}
c5 {[%emt 0:00:20]} 9. c3 {[%emt 0:08:48]} Nc6 {[%emt 0:00:59]} 10. Na3 {
[%emt 0:06:28][%cal Yb1a3,Ya3c2,Yc2e3] White is slightly better.} a6 {[%emt 0:
06:12]} 11. Nc2 {[%emt 0:01:04]} h6 {[%emt 0:06:30]} 12. h3 {[%emt 0:00:00]}
Re8 {[%emt 0:07:13]} 13. Ne3 {[%emt 0:09:09]} Bf8 {[%emt 0:04:31]} 14. Nh2 {
[%emt 0:06:32]} Be6 {[%emt 0:05:26] [#]} 15. Nhg4 $146 {[%emt 0:02:04]} ({
Predecessor:} 15. Qf3 Bxa2 16. Rxa2 b5 17. Nf5 b4 18. Ng4 Nxg4 19. Qxg4 Kh7 20.
Re3 g6 21. Rg3 bxc3 22. bxc3 {½-½ (47) Cornette,D (2447)-Collins,S (2455)
Chess.com INT 2017}) 15... Nh7 {[%emt 0:05:22]} 16. Qf3 {[%emt 0:05:47]} Ng5 {
[%emt 0:07:22]} 17. Qe2 {[%emt 0:08:08]} Ne7 {[%emt 0:14:34]} 18. h4 {[%emt 0:
00:00]} Nh7 {[%emt 0:01:12]} 19. g3 {[%emt 0:03:10]} Qd7 {[%emt 0:01:40]} 20.
a5 {[%emt 0:02:09]} Bxa2 {[%emt 0:13:08]} 21. Rxa2 {[%emt 0:00:15]} Qe6 {
[%emt 0:01:43]} 22. Ra4 {[%emt 0:09:59]} Rad8 {[%emt 0:01:04]} 23. Qf3 {
[%emt 0:11:36]} h5 {[%emt 0:04:25]} 24. Nh2 {[%emt 0:00:07]} Nf6 {[%emt 0:00:
00]} 25. c4 {[%emt 0:01:18][%cal Yc3c4,Yc4d5]} Qd7 {[%emt 0:04:18]} 26. Qd1 {
[%emt 0:01:44]} g6 {[%emt 0:05:51]} 27. Nd5 {[%emt 0:05:06]} Nfxd5 {[%emt 0:00:
31]} (27... Bg7 $14 {might be stronger.}) 28. cxd5 $16 {[%emt 0:00:00]} Bg7 {
[%emt 0:00:34]} 29. b4 {[%emt 0:00:18]} Rc8 {[%emt 0:00:19] [#]} 30. bxc5 {
[%emt 0:01:53]} Rxc5 {[%emt 0:00:14]} 31. Ba3 {[%emt 0:02:11]} ({Better is} 31.
Bd2 $16) 31... Rb5 {[%emt 0:00:36]} (31... Rc3 $11 {is superior.}) 32. Nf3 $14
{[%emt 0:01:26]} Rc8 {[%emt 0:01:26]} 33. Nd2 {[%emt 0:00:30]} ({White should
play} 33. Re2 $16) 33... Rc3 $11 {[%emt 0:01:10][%cal Yb5b3]} 34. Nc4 {[%emt 0:
03:19] Strongly threatening Bb4.} Rbb3 {[%emt 0:00:55]} 35. Nb6 {[%emt 0:00:39]
[#]} (35. Rb4 $1 $11 Rxa3 36. Nxa3 Rxa3 37. Qb1) 35... Qh3 $1 $19 {[%emt 0:01:
56]} 36. Bxd6 {[%emt 0:03:44]} (36. Re2 $142 Rxd3 37. Qf1 Qxf1+ 38. Kxf1 Rxa3
39. Rxa3 Rxa3 40. Nc4 Ra1+ 41. Kg2) 36... Rxd3 {[%emt 0:02:06]} 37. Qxb3 {
[%emt 0:00:04]} Rxb3 {[%emt 0:00:08]} 38. Bxe7 {[%emt 0:00:04]} Rxg3+ $2 {
[%emt 0:02:33]} 39. fxg3 $11 {[%emt 0:00:08] The position is equal.} Qxg3+ {
[%emt 0:00:05]} 40. Kf1 {[%emt 0:00:03]} Qf3+ {[%emt 0:00:21]} 41. Kg1 {
[%emt 0:30:03]} Qg3+ {[%emt 0:30:06]} 42. Kf1 {[%emt 0:00:07]} Qf3+ {[%emt 0:
00:09]} 43. Kg1 {[%emt 0:00:06] Weighted Error Value: White=0.42/Black=0.19 
(very precise)} 1/2-1/2

[Event "44th Chess Olympiad Open 2022"]
[Site "Chennai"]
[Date "2022.08.03"]
[Round "6.47"]
[White "Arvelo Leo, Gian Carlo"]
[Black "Lorne, Ras Malaku"]
[Result "0-1"]
[WhiteElo "2176"]
[BlackElo "2079"]
[Annotator "TA"]
[PlyCount "102"]
[EventDate "2022.??.??"]
[TimeControl "60"]

{[%evp 19,102,-11,-27,-11,-20,-39,-24,-41,-31,-60,-52,-87,-73,-87,-83,-93,-92,
-91,-86,-94,-80,-97,-54,-50,12,12,12,13,68,52,233,269,244,214,223,56,112,105,
97,97,125,0,72,0,22,-143,39,53,53,54,50,23,51,0,11,10,66,6,8,-23,0,-174,-167,
-951,-1001,-1038,-1034,-2188,-2335,-1802,-1675,-4133,-1177,-4133,-4127,-4133,
-4133,-390,-390,-29988,-29987,-29987,-29988,-29990,-29991]} 1. Nf3 {[%emt 0:00:
00]} c5 {[%emt 0:00:20]} 2. g3 {[%emt 0:00:19]} Nc6 {[%emt 0:00:26]} 3. Bg2 {
[%emt 0:00:06]} g6 {[%emt 0:00:18]} 4. O-O {[%emt 0:00:19]} Bg7 {[%emt 0:00:13]
} 5. d3 {[%emt 0:01:42]} e5 {[%emt 0:00:53]} 6. c4 {[%emt 0:00:57]} Nge7 {
[%emt 0:00:28]} 7. Nc3 {[%emt 0:00:08]} d6 {[%emt 0:00:30]} 8. Ne1 {[%emt 0:00:
00][%cal Yf3e1,Ye1c2,Yc2e3,Ye3c4]} Be6 {[%emt 0:00:56]} 9. Nc2 {[%emt 0:00:05]}
d5 {[%emt 0:00:46]} 10. cxd5 {[%emt 0:00:11]} Nxd5 {[%emt 0:00:00]} 11. Ne3 {
[%emt 0:00:21][%cal Re3d5] A37: Symmetrical English vs ...g6:4 Bg2 Bg7 5 Nf3.}
Nde7 {[%emt 0:00:24]} 12. Nc4 {[%emt 0:04:35] is recently more successful than
12.Ne4.} O-O $1 {[%emt 0:03:07]} 13. Rb1 {[%emt 0:09:27] [#] Black has an edge.
} h6 $146 {[%emt 0:25:53]} ({Predecessor:} 13... Qd7 14. Be3 Nd4 15. Ne4 Rac8
16. b4 cxb4 17. Bxd4 exd4 18. Rxb4 b5 19. Ncd2 Nd5 {0-1 (77) Vazquez del Valle,
R (1852)-Amon,N (2116) Portoroz 2017}) 14. Bd2 {[%emt 0:00:00]} Rb8 {[%emt 0:
14:02]} 15. a4 {[%emt 0:19:08][%cal Ya4a5]} f5 {[%emt 0:00:00]} 16. b3 {
[%emt 0:21:51][%cal Ya4a5]} b6 {[%emt 0:08:10]} 17. Qc1 {[%emt 0:00:00]} g5 {
[%emt 0:06:10]} 18. h4 {[%emt 0:03:14]} f4 {[%emt 0:03:48]} 19. hxg5 {[%emt 0:
00:40]} hxg5 {[%emt 0:00:25]} 20. Ne4 {[%emt 0:01:04]} Nd4 {[%emt 0:01:10]} 21.
Re1 {[%emt 0:00:28]} Ng6 {[%emt 0:16:47]} (21... Bg4 $15 22. f3 Bf5) 22. b4 $11
{[%emt 0:00:23]} g4 {[%emt 0:06:10][%cal Yg6h4]} 23. bxc5 {[%emt 0:00:46]} f3 {
[%emt 0:02:04]} (23... fxg3 $11 24. fxg3 bxc5) 24. exf3 {[%emt 0:02:16]} (24.
Bg5 $5 {[%cal Rg5d8]} Nxe2+ 25. Rxe2 Qxd3 26. Re3 Qxc4 27. Bf1 Qxc1 28. Rxc1
bxc5 29. Bb5 $11) 24... Nxf3+ {[%emt 0:00:23]} (24... gxf3 $14 25. Bf1 bxc5)
25. Bxf3 $18 {[%emt 0:00:23]} gxf3 {[%emt 0:01:36]} 26. Ncd6 {[%emt 0:00:32]
Threatens to win with c6. Pair of Knights!} Nf4 {[%emt 0:01:51][%cal Ye6d5]}
27. Qd1 $2 {[%emt 0:04:16]} (27. gxf4 $2 Qh4 28. Re3 exf4 29. Rxf3 Qg4+ 30. Kh2
Qxf3 $19) (27. Bxf4 exf4 28. Rb4 (28. gxf4 $2 Qh4 $19) 28... a5 $14) (27. c6 $1
$18 Qe7 28. c7 (28. gxf4 Qh4 $11) 28... Nh3+ 29. Kf1) 27... Nh3+ {[%emt 0:02:
09]} (27... Ne2+ $14 28. Kh2 Qd7) 28. Kf1 $1 $16 {[%emt 0:02:02]} bxc5 {
[%emt 0:00:20]} 29. Rxb8 {[%emt 0:00:59]} Qxb8 {[%emt 0:00:07]} 30. Bc3 {
[%emt 0:00:49]} ({Better is} 30. Qc2 $16) 30... Qc7 {[%emt 0:01:52]} (30... Qd8
$11 {remains equal.}) 31. Qa1 {[%emt 0:00:14]} (31. Re3 $1 $16 {[%cal Re3f3]})
31... c4 $11 {[%emt 0:00:43]} 32. d4 $2 {[%emt 0:00:00]} (32. Qb1 $11) 32...
exd4 $2 {[%emt 0:00:25] Really sharp!} ({Black should play} 32... Bh8 $17 {
...Qh7 is the strong threat.} 33. Rd1 (33. dxe5 $2 Qh7 $19) 33... Qh7) 33. Bxd4
$14 {[%emt 0:00:09]} Bxd4 {[%emt 0:00:56]} 34. Qxd4 {[%emt 0:00:08]} Qg7 {
[%emt 0:00:26]} 35. Qxg7+ {[%emt 0:00:49]} Kxg7 {[%emt 0:00:00]} 36. Nc5 {
[%emt 0:00:15]} (36. Re3 $14) 36... Bg8 {[%emt 0:00:39]} 37. Re7+ {[%emt 0:00:
43]} Kf6 {[%emt 0:00:44]} (37... Kg6 $11) 38. Rxa7 {[%emt 0:00:00]} (38. Re3 $1
$14 Kg6 39. Nb5 (39. Nd7 Rd8 $11)) 38... Rd8 $11 {[%emt 0:00:00]} 39. Nde4+ {
[%emt 0:01:16]} Ke5 {[%emt 0:00:27][%cal Rd8d1,Yf6e5,Ye5d4,Yd4e4] Black has
compensation.} 40. Ke1 {[%emt 0:00:24] Inhibits Rd1+.} (40. Re7+ $11 {and
White has nothing to worry.} Kd4 41. Nb7) 40... Kd4 $19 {[%emt 0:00:53]} 41.
Rg7 $2 {[%emt 0:30:38]} (41. Re7 c3 42. Nd7) 41... Re8 {[%emt 0:01:55] Hoping
for ...Bd5.} 42. Rd7+ {[%emt 0:00:00]} Bd5 {[%emt 0:00:00] Strongly
threatening ...c3.} 43. Kd2 {[%emt 0:00:00]} Rxe4 {[%emt 0:01:10]} ({Weaker is
} 43... Nxf2 44. Nc3 Kxc5 45. Rxd5+ Kc6 46. Rd4 $11 (46. Rf5 Rd8+ 47. Kc2 Rd3
$11)) 44. Nxe4 {[%emt 0:00:00]} Kxe4 {[%emt 0:00:06]} 45. a5 {[%emt 0:00:00]}
Nxf2 {[%emt 0:08:56]} 46. a6 {[%emt 0:00:00] [#]} c3+ $1 {[%emt 0:01:04]} 47.
Kc2 {[%emt 0:00:00] [#]} Nd3 $1 {[%emt 0:02:10] ( -> ...f2)} 48. a7 {[%emt 0:
00:00]} f2 {[%emt 0:04:03]} 49. Rf7 $2 {[%emt 0:00:09]} (49. Rxd5 $19 f1=Q 50.
Re5+ Kd4 51. Re4+ Kc5 52. Kxc3 (52. a8=Q $2 {is a self mate.} Qc1+ 53. Kb3 Qb2+
54. Ka4 Qa2#) 52... Qa1+ 53. Kxd3 Qxa7 54. Ke2) 49... Ne1+ {[%emt 0:02:13]
Black mates.} 50. Kxc3 {[%emt 0:02:09]} Nf3 {[%emt 0:00:14]} 51. Re7+ {[%emt 0:
01:45]} Ne5 {[%emt 0:12:57] Never resign too early! Weighted Error Value:
White=1.02/Black=0.29 (precise)} 0-1

[Event "44th Chess Olympiad Open 2022"]
[Site "Chennai"]
[Date "2022.08.03"]
[Round "6.47"]
[White "Smith, Shreyas"]
[Black "Guzman, Christopher"]
[Result "0-1"]
[WhiteElo "2147"]
[BlackElo "2243"]
[Annotator "NA RC"]
[PlyCount "84"]
[EventDate "2022.??.??"]
[TimeControl "60"]

1. e4 {[%emt 0:00:03]} c6 {[%emt 0:00:43]} 2. d4 {[%emt 0:00:07]} d5 {[%emt 0:
00:00]} 3. e5 {[%emt 0:00:06]} Bf5 {[%emt 0:00:27]} 4. h4 {[%emt 0:00:08]} h5 {
[%emt 0:00:06]} 5. Bd3 {[%emt 0:00:06]} Bxd3 {[%emt 0:00:12]} 6. Qxd3 {[%emt 0:
00:00]} Qa5+ {[%emt 0:07:50]} 7. Nd2 {[%emt 0:00:08]} e6 {[%emt 0:00:13]} 8.
Ngf3 {[%emt 0:00:09]} Nh6 {[%emt 0:00:39]} 9. O-O {[%emt 0:00:17]} Be7 {
[%emt 0:01:19]} 10. c4 {[%emt 0:00:58]} Nf5 {[%emt 0:00:53]} 11. g3 {[%emt 0:
00:00]} Nd7 {[%emt 0:05:41]} 12. b3 {[%emt 0:01:59]} Rc8 {[%emt 0:04:28]} 13.
a3 {[%emt 0:02:19]} Qd8 {[%emt 0:00:18]} 14. Nb1 {[%emt 0:01:31]} Qa5 {[%emt 0:
00:00]} 15. Bd2 {[%emt 0:08:10]} Qa6 {[%emt 0:00:07]} 16. Qc2 {[%emt 0:02:45]}
dxc4 {[%emt 0:07:16]} 17. bxc4 {[%emt 0:00:14]} c5 {[%emt 0:07:14]} 18. d5 {
[%emt 0:01:17]} Nd4 {[%emt 0:00:15]} 19. Nxd4 {[%emt 0:06:23]} cxd4 {[%emt 0:
00:00]} 20. d6 {[%emt 0:03:48]} Rxc4 {[%emt 0:01:45]} 21. Qa2 {[%emt 0:00:55]}
Bd8 {[%emt 0:00:23]} 22. Bf4 {[%emt 0:00:10]} Qc6 {[%emt 0:02:57]} 23. Qe2 {
[%emt 0:05:03]} g5 {[%emt 0:07:43]} 24. Nd2 {[%emt 0:00:49]} d3 {[%emt 0:02:05]
} 25. Qd1 {[%emt 0:01:24]} gxf4 {[%emt 0:02:54]} 26. Nxc4 {[%emt 0:00:07]} Qxc4
{[%emt 0:00:04]} 27. Qf3 {[%emt 0:01:53]} Nxe5 {[%emt 0:00:45]} 28. Qxb7 {
[%emt 0:00:30]} Qd4 {[%emt 0:04:53]} 29. Kg2 {[%emt 0:06:11]} f3+ {[%emt 0:00:
00]} 30. Kh2 {[%emt 0:00:31]} Qxd6 {[%emt 0:00:16]} 31. Rad1 {[%emt 0:02:57]}
Bxh4 {[%emt 0:00:34]} 32. Rfe1 {[%emt 0:07:01]} Ng4+ {[%emt 0:06:47]} 33. Kg1 {
[%emt 0:00:14]} Bxg3 {[%emt 0:01:02]} 34. Qc8+ {[%emt 0:02:15]} Ke7 {[%emt 0:
00:00]} 35. Qb7+ {[%emt 0:04:16]} Kf8 {[%emt 0:00:29]} 36. Qc8+ {[%emt 0:00:30]
} Kg7 {[%emt 0:00:52]} 37. Qc3+ {[%emt 0:00:08]} f6 {[%emt 0:02:39]} 38. Rxd3 {
[%emt 0:00:33]} Bxf2+ {[%emt 0:00:08]} 39. Kf1 {[%emt 0:00:04]} Qg3 {[%emt 0:
00:00]} 40. Rd7+ {[%emt 0:01:19]} Kg6 {[%emt 0:00:36]} 41. Qd3+ {[%emt 0:31:41]
} Kg5 {[%emt 0:30:09]} 42. Qd2+ {[%emt 0:00:56]} Kh4 {[%emt 0:02:11]} 0-1

[Event "44th Chess Olympiad Open 2022"]
[Site "Chennai"]
[Date "2022.08.03"]
[Round "6.47"]
[White "Shaw, Jaden"]
[Black "Camacho Campusano, David Daniel"]
[Result "1-0"]
[WhiteElo "1930"]
[BlackElo "2221"]
[Annotator "NA RC"]
[PlyCount "109"]
[EventDate "2022.??.??"]
[TimeControl "60"]

1. e4 {[%emt 0:00:10]} e5 {[%emt 0:00:10]} 2. Nf3 {[%emt 0:00:52]} Nc6 {
[%emt 0:00:15]} 3. Bb5 {[%emt 0:00:28]} f5 {[%emt 0:03:58]} 4. d3 {[%emt 0:00:
00]} fxe4 {[%emt 0:00:21]} 5. dxe4 {[%emt 0:00:43]} Nf6 {[%emt 0:00:24]} 6. O-O
{[%emt 0:01:05]} d6 {[%emt 0:04:16]} 7. Nc3 {[%emt 0:01:13]} a6 {[%emt 0:02:54]
} 8. Be2 {[%emt 0:01:32]} Be7 {[%emt 0:01:08]} 9. Be3 {[%emt 0:04:41]} O-O {
[%emt 0:01:40]} 10. Ng5 {[%emt 0:01:30]} Qe8 {[%emt 0:06:55]} 11. Bc4+ {
[%emt 0:01:02]} Kh8 {[%emt 0:00:13]} 12. Ne6 {[%emt 0:00:13]} Bxe6 {[%emt 0:00:
00]} 13. Bxe6 {[%emt 0:00:08]} Bd8 {[%emt 0:06:41]} 14. Bh3 {[%emt 0:03:42]}
Ne7 {[%emt 0:08:17]} 15. Qd3 {[%emt 0:00:45]} Qh5 {[%emt 0:02:46]} 16. Ne2 {
[%emt 0:03:23]} Ng4 {[%emt 0:08:00]} 17. Ng3 {[%emt 0:03:06]} Qg6 {[%emt 0:00:
00]} 18. Bd2 {[%emt 0:01:44]} h5 {[%emt 0:00:46]} 19. f3 {[%emt 0:03:03]} Nh6 {
[%emt 0:06:57]} 20. f4 {[%emt 0:05:48]} exf4 {[%emt 0:05:52]} 21. Bxf4 {
[%emt 0:04:13]} Ng4 {[%emt 0:04:43]} 22. Bd2 {[%emt 0:02:53]} Re8 {[%emt 0:00:
00]} 23. Rf4 {[%emt 0:03:26]} Nc6 {[%emt 0:02:35]} 24. Rf5 {[%emt 0:04:28]}
Nce5 {[%emt 0:13:04]} 25. Qb3 {[%emt 0:02:37]} h4 {[%emt 0:01:04]} 26. Rh5+ {
[%emt 0:05:08]} Nh6 {[%emt 0:00:27]} 27. Bf5 {[%emt 0:01:05]} Qf7 {[%emt 0:00:
00]} 28. Bxh6 {[%emt 0:02:18]} Qxb3 {[%emt 0:02:46]} 29. axb3 {[%emt 0:02:12]}
hxg3 {[%emt 0:00:54]} 30. Bg5+ {[%emt 0:00:24]} Kg8 {[%emt 0:00:02]} 31. Bh7+ {
[%emt 0:00:32]} Kf7 {[%emt 0:00:15]} 32. Rf1+ {[%emt 0:00:23]} Bf6 {[%emt 0:00:
00]} 33. hxg3 {[%emt 0:04:17]} Rh8 {[%emt 0:01:38]} 34. Rh4 {[%emt 0:01:23]} a5
{[%emt 0:00:43]} 35. Bxf6 {[%emt 0:03:58]} gxf6 {[%emt 0:00:02]} 36. Bf5 {
[%emt 0:00:07]} Rxh4 {[%emt 0:00:58]} 37. gxh4 {[%emt 0:00:02]} a4 {[%emt 0:00:
00]} 38. Ra1 {[%emt 0:00:51]} axb3 {[%emt 0:00:18]} 39. Rxa8 {[%emt 0:00:44]}
bxc2 {[%emt 0:00:09]} 40. Ra1 {[%emt 0:00:06]} Nd3 {[%emt 0:00:47]} 41. e5 {
[%emt 0:30:06]} c1=Q+ {[%emt 0:31:07]} 42. Rxc1 {[%emt 0:00:02]} Nxc1 {[%emt 0:
00:00]} 43. e6+ {[%emt 0:00:10]} Kf8 {[%emt 0:00:00]} 44. Kf2 {[%emt 0:00:00]}
Nb3 {[%emt 0:00:00]} 45. Ke3 {[%emt 0:00:00]} Na5 {[%emt 0:00:00]} 46. Be4 {
[%emt 0:00:00]} Ke7 {[%emt 0:00:00]} 47. Bd5 {[%emt 0:00:00]} Nc6 {[%emt 0:00:
00]} 48. Ke4 {[%emt 0:00:00]} Ne5 {[%emt 0:00:00]} 49. Kf5 {[%emt 0:00:00]} c6
{[%emt 0:00:00]} 50. Bb3 {[%emt 0:00:00]} Kf8 {[%emt 0:00:00]} 51. h5 {[%emt 0:
00:00]} d5 {[%emt 0:00:00]} 52. h6 {[%emt 0:00:00]} b5 {[%emt 0:02:30]} 53. h7
{[%emt 0:00:00]} Kg7 {[%emt 0:00:10]} 54. e7 {[%emt 0:00:00]} Nf7 {[%emt 0:00:
00]} 55. h8=Q+ {[%emt 0:00:00]} 1-0